{"text_format":"2","workbook":"xlsx","n_sheets":14,"sheets":["Summary","Al Hadbaa area Ba'weeza st","Al Mhandissen-Athaar ","Al Baladiat-Ra'oof Mosque","Al Rshedea-Clinic st","Al Arabi-Besan entrance-mosque ","Al Arabi area-Presidential","Al arabi-Dairy factory","Al arabi-Al khashab mosque","Al arabi-two side road Park","Al sdeeq area-20m st","Al baradiat-Ra'oof Mosque","Al Hadbaa-Ba'weeza Appart","Al Arabi-Two side road nea Park"],"not_rendered":{"charts":0,"images":0,"macros":0,"external_links":0,"defined_names":1,"comments":0,"pivot_tables":0},"unopened":[],"bounds":{"document_bytes":16777216,"sheet_cells":100000,"run_cost":"one","rows_first":2000,"rows_last":500,"rows_between":2000,"halvings":0,"cell_chars":16384,"cell_head_chars":4096},"cells_cut":0,"cells_raw":0,"read":"whole","date_system":"1900"}

{"sheet":"Summary","index":0,"n_rows":16,"n_cols":3,"rows_kept":16,"cut":false,"hidden":false,"merged":[]}
[null,"Lot1. Sewage Mosul"]
["#","Name of place","Cost $"]
[1,"Renovation of the Sewerage Pipe Network - Al-Hadbaa area-Ba'weeza st.- Mosul- Ninwa Governorate ",{"$f":"'Al Hadbaa area Ba''weeza st'!F20","v":0}]
[2,"Renovation of the sewerage pipe network - Al-Mhandiseen area-near Athaar - Mosul - Ninwa Governorate ",{"$f":"'Al Mhandissen-Athaar '!F19","v":0}]
[3,"Renovation of the sewerage pipe network - Al-Baladiat area-near Al-Ra'oof Mosque - Mosul - Ninwa Governorate ",{"$f":"'Al Baladiat-Ra''oof Mosque'!F20","v":0}]
[4,"Renovation of the Sewerage Pipe Network - Al-Rshedea,Clinic st. - Mosul - Ninwa Governorate ",{"$f":"'Al Rshedea-Clinic st'!F22","v":0}]
[5,"Renovation of the sewerage pipe network - Al-Rshedea -Besan entrance near the mosque - Mosul - Ninwa Governorate ",{"$f":"'Al Arabi-Besan entrance-mosque '!F22","v":0}]
[6,"Renovation of the sewerage pipe network - Al-arabi area-Near from presidential palaces-  Mosul - Ninwa Governorate ",{"$f":"'Al Arabi area-Presidential'!F23","v":0}]
[7,"Renovation of the sewerage pipe network - Al-arabi area-Near from dairy factory - Mosul - Ninwa Governorate ",{"$f":"'Al arabi-Dairy factory'!F22","v":0}]
[8,"Renovation of the sewerage pipe network - Al-arabi area-AL-khashab Mosque st.- Mosul - Ninwa Governorate ",{"$f":"'Al arabi-Al khashab mosque'!F20","v":0}]
[9,"Renovation of the sewerage pipe network - Al Arabi Area-two side road near the Park- Mosul- Ninwa Governorate ",{"$f":"'Al arabi-two side road Park'!F20","v":0}]
[10,"Renovation of the Sewerage Pipe Network - Al-Baladiat area-near Al-Ra'oof Mosque - Mosul - Ninwa Governorate ",{"$f":"'Al baradiat-Ra''oof Mosque'!F20","v":0}]
[11,"Renovation of the sewerage pipe network - Al-Sdeeq area-20m st.- Mosul - Ninwa Governorate ",{"$f":"'Al arabi-two side road Park'!F20","v":0}]
[12,"Renovation of the sewerage pipe network - Al-Hadbaa area-Ba'weeza in front of the apartments- Mosul- Ninwa Governorate ",{"$f":"'Al Hadbaa-Ba''weeza Appart'!F20","v":0}]
[13,"Renovation of the Sewerage Pipe Network - Al Arabi Area-two side road near the Park- Mosul- Ninwa Governorate ",{"$f":"'Al Arabi-Two side road nea Park'!F20","v":0}]
[null,"Total",{"$f":"SUM(C3:C15)","v":0}]

{"sheet":"Al Hadbaa area Ba'weeza st","index":1,"n_rows":20,"n_cols":6,"rows_kept":20,"cut":false,"hidden":false,"merged":[[19,1,19,4],[0,0,0,5],[2,1,2,5],[3,1,3,5],[4,1,4,5],[5,1,5,5]]}
["Renovation of the Sewerage Pipe Network - Al-Hadbaa area-Ba'weeza st.- Mosul- Ninwa Governorate "]
[null,"General Specification : "]
[null," 1- All works according to the instruction by the supervision Engineering Committee"]
[null,"2- All the materials supplied by the contractor must be according to Iraq standards"]
[null,"     3- The contractor must provide samples , catalogues and specification of materials for testing and approval by the site engineer before supplying"]
[null,"4- Contractor must pay the cost for samples including and laboratory test required"]
[]
["#","Item Description","Unit","Qty","Price$","Total $"]
[1,"Excavation\nSupply materials, machineries, and manpower to remove the damaged layers (asphalt and concrete), excavate 3m average width of the subbase around the pipes to the required depth, removing the existing damaged pipes, the work includes supporting the trench's sides and pumping out the water with all required to complete the job, remove the rubble out of the site to locations determined by the municipality of Mosul.\n","ML",24,null,{"$f":"D9*E9","v":0}]
[2,"Supply pipes:\nSupplying different types and sizes  of pipes as shown below, with all its requirements such as connection fittings of (male & female) threaded adapters , the price includes loading, transporting and unloading in the site."]
[null,"1000mm GRP pipes, with the same thickness as the existing pipes.","ML",24,null,{"$f":"D11*E11","v":0}]
[null," 315mm UPVC pipes, with the same thickness as the existing pipes. ","ML",12,null,{"$f":"D12*E12","v":0}]
[3,"Laying pipes:\nLaying the pipes according to designed slope, bedding under and around the buried pipe with 20cm thick clean sand, the work includes casting the connection joint between the existing and new pipe because of the different pipes material."]
[null,"For 1000mm GRP pipes","ML",24,null,{"$f":"D14*E14","v":0}]
[4,"Laying gullies pipes:\n Supply materials, machineries, and manpower to excavate and lay(315mm dia. UPVC pipes) according to designed slope, bedding under and around the pipes with 20cm thick clean sand, the work includes connecting the pipe with gully & manhole and backfilling the pipe with compacted subbase layer to the road level.","ML",12,null,{"$f":"D15*E15","v":0}]
[5,"Manholes:\nSupply materials and manpower to cast manholes by reinforced concrete mortar 1:2:4, C20MPa, with 30cm thick base, 25cm thick walls, reinforced with 12mm dia. (15*15)cm spaced at 15 * 15 cm in both direction, 30cm thick slab cover reinforced with two layers 12mm dia. (15*15)cm, Providing & fixing steel cover, approved quality, (70cm dia.)with the road level, the work includes excavation, formwork, repairs work and all required to complete the job as the details below:"]
[null,"Internal clearance dimensions (1.6*1.6) m","EA",2,null,{"$f":"D17*E17","v":0}]
[5,"Gullies:\nSupply materials, manpower to Cast Gullies with concrete 1:2:4, C20MPa, internal clearance dimensions (35*55) cm, 75cm depth, base thickness 20cm, wall thickness 15cm. The work includes providing and fixing cast iron inlet cover.","EA",4,null,{"$f":"D18*E18","v":0}]
[6,"Backfilling:\nSupply materials, machineries, and manpower to backfill the working area with subbase layers every 30cm thick, 95% degree of compaction for each layers using machineries making the standard compaction required to the road level. ","M3",168,null,{"$f":"D19*E19","v":0}]
[null,"Total",null,null,null,{"$f":"SUM(F9:F19)","v":0}]

{"sheet":"Al Mhandissen-Athaar ","index":2,"n_rows":19,"n_cols":6,"rows_kept":19,"cut":false,"hidden":false,"merged":[[18,1,18,4],[0,0,0,5],[2,1,2,5],[3,1,3,5],[4,1,4,5],[5,1,5,5]]}
["Renovation of the sewerage pipe network - Al-Mhandiseen area-near Athaar - Mosul - Ninwa Governorate "]
[null,"General Specification : "]
[null," 1- All works according to the instruction by the supervision Engineering Committee"]
[null,"2- All the materials supplied by the contractor must be according to Iraq standards"]
[null,"     3- The contractor must provide samples , catalogues and specification of materials for testing and approval by the site engineer before supplying"]
[null,"4- Contractor must pay the cost for samples including and laboratory test required"]
["#","Item Description","Unit","Qty","price$","Total $"]
[1,"Excavation:\nSupply materials, machineries, and manpower to remove the damaged layers (asphalt and concrete), excavate 3m average width the subbase around the pipes to the required depth, removing the existing pipes, the work includes supporting the trench's sides and pumping out the water with all required to complete the job, remove the rubble out of the site to locations determined by the municipality of Mosul.\n","M3",252,null,{"$f":"D8*E8","v":0}]
[2,"Supply pipes:\nSupplying different types and sizes  of pipes as shown below, with all its requirements such as connection fittings of (male & female) threaded adapters , the price includes loading, transporting and unloading in the site."]
[null,"400mm UPVC pipes,with the same thickness as the existing pipes.","ML",42,null,{"$f":"D10*E10","v":0}]
[null," 315mm UPVC pipes ,with the same thickness as the existing pipes.","ML",12,null,{"$f":"D11*E11","v":0}]
[3,"Laying pipes:\nLaying the pipes according to designed slope, bedding under and around the buried pipe with 20cm thick clean sand, the work includes casting the connection joint between the existing and new pipe because of the different pipes material."]
[null,"400mm UPVC pipes","ML",42,null,{"$f":"D13*E13","v":0}]
[4,"Laying gullies pipes:\n Supply materials, machineries, and manpower to excavate and lay(315mm dia. UPVC pipes) according to designed slope, bedding under and around the pipes with 20cm thick clean sand, the work includes connecting the pipe with gully & manhole and backfilling the pipe with compacted subbase layer to the road level.","ML",12,null,{"$f":"D14*E14","v":0}]
[5,"Manholes:\nSupply materials and manpower to cast manholes by reinforced concrete mortar 1:2:4 with 30cm thick base, 25cm thick walls, reinforced with 12mm in dia. (15*15)cm, 30cm thick slab cover reinforced with two layers 12mm dia. (15*15)cm, Providing & fixing steel cover approved quality (70cm dia.)with the road level, the work includes   excavation, formwork, repairs work and all required to complete the job as the details below:"]
[null,"internal clearance dimensions (1*1) m","EA",3,null,{"$f":"D16*E16","v":0}]
[5,"Gullies:\nSupply materials, manpower to Cast Gullies with concrete 1:2:4, internal clearance dimensions (35*55) cm, 75cm depth, base thickness 20cm, wall thickness 15cm. The work includes providing and fixing cast iron inlet cover.","EA",6,null,{"$f":"D17*E17","v":0}]
[6,"Backfilling:\nSupply materials, machineries, and manpower to backfill the working area with subbase layers every 30cm thick, approved compaction of each layers using machineries making the standard compaction required to the road level. ","M3",225,null,{"$f":"D18*E18","v":0}]
[null,"Total",null,null,null,{"$f":"SUM(F8:F18)","v":0}]

{"sheet":"Al Baladiat-Ra'oof Mosque","index":3,"n_rows":20,"n_cols":6,"rows_kept":20,"cut":false,"hidden":false,"merged":[[19,1,19,4],[0,0,0,5],[2,1,2,5],[3,1,3,5],[4,1,4,5],[5,1,5,5]]}
["Renovation of the sewerage pipe network - Al-Baladiat area-near Al-Ra'oof Mosque - Mosul - Ninwa Governorate "]
[null,"General Specification : "]
[null," 1- All works according to the instruction by the supervision Engineering Committee"]
[null,"2- All the materials supplied by the contractor must be according to Iraq standards"]
[null,"     3- The contractor must provide samples , catalogues and specification of materials for testing and approval by the site engineer before supplying"]
[null,"4- Contractor must pay the cost for samples including and laboratory test required"]
[]
["#","Item Description","Unit","Qty","price$","Total $"]
[1,"Excavation\nSupply materials, machineries, and manpower to remove the damaged layers (asphalt and concrete), excavate 3m average width the subbase around the pipes to the required depth, removing the existing pipes, the work includes supporting the trench's sides and pumping out the water with all required to complete the job, remove the rubble out of the site to locations determined by the municipality of Mosul.\n","M3",72,null,{"$f":"D9*E9","v":0}]
[2,"Supply pipes:\nSupplying different types and sizes  of pipes as shown below, with all its requirements such as connection fittings of (male & female) threaded adapters , the price includes loading, transporting and unloading in the site."]
[null,"600mm UPVC pipes, with the same thickness as the existing pipes.","ML",12,null,{"$f":"D11*E11","v":0}]
[null," 315mm UPVC pipes , with the same thickness as the existing pipes.","ML",6,null,{"$f":"D12*E12","v":0}]
[3,"Laying pipes:\nLaying the pipes according to designed slope, bedding under and around the buried pipe with 20cm thick clean sand, the work includes casting the connection joint between the existing and new pipe because of the different pipes material."]
[null,"600mm UPVC pipes","ML",12,null,{"$f":"D14*E14","v":0}]
[4,"Laying gullies pipes:\n Supply materials, machineries, and manpower to excavate and lay(315mm dia. UPVC pipes) according to designed slope, bedding under and around the pipes with 20cm thick clean sand, the work includes connecting the pipe with gully & manhole and backfilling the pipe with compacted subbase layer to the road level.","ML",6,null,{"$f":"D15*E15","v":0}]
[5,"Manholes:\nSupply materials and manpower to cast manholes by reinforced concrete mortar 1:2:4 with 30cm thick base, 25cm thick walls, reinforced with 12mm in dia. (15*15)cm, 30cm thick slab cover reinforced with two layers 12mm dia. (15*15)cm, Providing & fixing steel cover approved quality (70cm dia.)with the road level, the work includes   excavation, formwork, repairs work and all required to complete the job as the details below:"]
[null,"internal clearance dimensions (1.2*1.2) m","EA",2,null,{"$f":"D17*E17","v":0}]
[5,"Gullies:\nSupply materials, manpower to Cast Gullies with concrete 1:2:4, internal clearance dimensions (35*55) cm, 75cm depth, base thickness 20cm, wall thickness 15cm. The work includes providing and fixing cast iron inlet cover.","EA",2,null,{"$f":"D18*E18","v":0}]
[6,"Backfilling:\nSupply materials, machineries, and manpower to backfill the working area with subbase layers every 30cm thick, approved compaction of each layers using machineries making the standard compaction required to the road level. ","M3",60,null,{"$f":"D19*E19","v":0}]
[null,"Total",null,null,null,{"$f":"SUM(F9:F19)","v":0}]

{"sheet":"Al Rshedea-Clinic st","index":4,"n_rows":22,"n_cols":6,"rows_kept":22,"cut":false,"hidden":false,"merged":[[21,1,21,4],[0,0,0,5],[2,1,2,5],[3,1,3,5],[4,1,4,5],[5,1,5,5]]}
["Renovation of the Sewerage Pipe Network - Al-Rshedea,Clinic st. - Mosul - Ninwa Governorate "]
[null,"General Specification : "]
[null," 1- All works according to the instruction by the supervision Engineering Committee"]
[null,"2- All the materials supplied by the contractor must be according to Iraq standards"]
[null,"     3- The contractor must provide samples , catalogues and specification of materials for testing and approval by the site engineer before supplying"]
[null,"4- Contractor must pay the cost for samples including and laboratory test required"]
[null,"5- The drawings are part of the BOQ"]
["#","Item Description","Unit","Qty","Price$","Total $"]
[1,"Excavation\nSupply materials, machineries, and manpower to remove the damaged layers (asphalt and concrete), excavate 3m average width the subbase around the pipes to the required depth, removing the existing pipes, the work includes supporting the trench's sides and pumping out the water with all required to complete the job, remove the rubble out of the site to locations determined by the municipality of Mosul.\n","ML",48,null,{"$f":"D9*E9","v":0}]
[2,"Supply pipes:\nSupplying different types and sizes  of pipes as shown below, with all its requirements such as connection fittings of (male & female) threaded adapters , the price includes loading, transporting and unloading in the site."]
[null,"700mm UPVC pipes, with the same thickness as the exsiting Pipes.","ML",18,null,{"$f":"D11*E11","v":0}]
[null,"600mm UPVC pipes, with the same thickness as the exsiting Pipes.","ML",30,null,{"$f":"D12*E12","v":0}]
[null," 315mm UPVC pipes , with the same thickness as the exsiting Pipes.","ML",12,null,{"$f":"D13*E13","v":0}]
[3,"Laying pipes:\nLaying the pipes according to designed slope, bedding under and around the buried pipe with 20cm thick clean sand, the work includes casting the connection joint between the existing and new pipe because of the different pipes material."]
[null,"For 700mm UPVC pipes","ML",18,null,{"$f":"D15*E15","v":0}]
[null,"For 600mm UPVC pipes","ML",30,null,{"$f":"D16*E16","v":0}]
[4,"Laying gullies pipes:\n Supply materials, machineries, and manpower to excavate and lay(315mm dia. UPVC pipes) according to designed slope, bedding under and around the pipes with 20cm thick clean sand, the work includes connecting the pipe with gully & manhole and backfilling the pipe with compacted subbase layer to the road level.","ML",12,null,{"$f":"D17*E17","v":0}]
[5,"Manholes:\nSupply materials and manpower to cast manholes by reinforced concrete mortar 1:2:4, C20MPa, with 30cm thick base, 25cm thick walls, reinforced with 12mm dia. (15*15)cm spaced at 15 *15 cm in both direction, 30cm thick slab cover reinforced with two layers 12mm dia. (15*15)cm, Providing & fixing steel cover of approved quality(70cm dia.)with the road level, the work includes   excavation, formwork, repairs work and all required to complete the job as the details below:"]
[null,"Internal clearance dimensions (1.6*1.6) m","EA",6,null,{"$f":"D19*E19","v":0}]
[5,"Gullies:\nSupply materials, manpower to Cast Gullies with concrete 1:2:4, C20MPa,  internal clearance dimensions (35*55) cm, 75cm depth, base thickness 20cm, wall thickness 15cm. The work includes providing and fixing cast iron inlet cover.","EA",4,null,{"$f":"D20*E20","v":0}]
[6,"Backfilling:\nSupply materials, machineries, and manpower to backfill the working area with subbase layers every 30cm thick, 95% degree of compaction for each layers using machineries making the standard compaction required to the road level. ","M3",380,null,{"$f":"D21*E21","v":0}]
[null,"Total",null,null,null,{"$f":"SUM(F9:F21)","v":0}]

{"sheet":"Al Arabi-Besan entrance-mosque ","index":5,"n_rows":22,"n_cols":6,"rows_kept":22,"cut":false,"hidden":false,"merged":[[21,1,21,4],[0,0,0,5],[2,1,2,5],[3,1,3,5],[4,1,4,5],[5,1,5,5]]}
["Renovation of the sewerage pipe network - Al-Rshedea -Besan entrance near the mosque - Mosul - Ninwa Governorate "]
[null,"General Specification : "]
[null," 1- All works according to the instruction by the supervision Engineering Committee"]
[null,"2- All the materials supplied by the contractor must be according to Iraq standards"]
[null,"     3- The contractor must provide samples , catalogues and specification of materials for testing and approval by the site engineer before supplying"]
[null,"4- Contractor must pay the cost for samples including and laboratory test required"]
["#","Item Description","Unit","Qty","price$","Total $"]
[1,"Excavation\nSupply materials, machineries, and manpower to remove the damaged layers (asphalt and concrete), excavate 3m average width the subbase around the pipes to the required depth, removing the existing pipes, the work includes supporting the trench's sides and pumping out the water with all required to complete the job, remove the rubble out of the site to locations determined by the municipality of Mosul.\n","M3",756,null,{"$f":"D8*E8","v":0}]
[2,"Supply pipes:\nSupplying different types and sizes  of pipes as shown below, with all its requirements such as connection fittings of (male & female) threaded adapters , the price includes loading, transporting and unloading in the site."]
[null,"1000mm GRP pipes, with the same thickness as the existing pipes.","ML",78,null,{"$f":"D10*E10","v":0}]
[null,"600mm UPVC pipes,with the same thickness as the existing pipes.","ML",48,null,{"$f":"D11*E11","v":0}]
[null," 315mm UPVC pipes ,with the same thickness as the existing pipes.","ML",30,null,{"$f":"D12*E12","v":0}]
[3,"Laying pipes:\nLaying the pipes according to designed slope, bedding under and around the buried pipe with 20cm thick clean sand, the work includes casting the connection joint between the existing and new pipe because of the different pipes material."]
[null,"1000mm GRP pipes","ML",78,null,{"$f":"D14*E14","v":0}]
[null,"600mm UPVC pipes","ML",48,null,{"$f":"D15*E15","v":0}]
[4,"Laying gullies pipes:\n Supply materials, machineries, and manpower to excavate and lay(315mm dia. UPVC pipes) according to designed slope, bedding under and around the pipes with 20cm thick clean sand, the work includes connecting the pipe with gully & manhole and backfilling the pipe with compacted subbase layer to the road level.","ML",30,null,{"$f":"D16*E16","v":0}]
[5,"Manholes:\nSupply materials and manpower to cast manholes by reinforced concrete mortar 1:2:4 with 30cm thick base, 25cm thick walls, reinforced with 12mm in dia. (15*15)cm, 30cm thick slab cover reinforced with two layers 12mm dia. (15*15)cm, Providing & fixing steel cover approved quality (70cm dia.)with the road level, the work includes   excavation, formwork, repairs work and all required to complete the job as the details below:"]
[null,"internal clearance dimensions (1.6*1.6) m","EA",5,null,{"$f":"D18*E18","v":0}]
[null,"internal clearance dimensions (1.2*1.2) m","EA",4,null,{"$f":"D19*E19","v":0}]
[5,"Gullies:\nSupply materials, manpower to Cast Gullies with concrete 1:2:4, internal clearance dimensions (35*55) cm, 75cm depth, base thickness 20cm, wall thickness 15cm. The work includes providing and fixing cast iron inlet cover.","EA",10,null,{"$f":"D20*E20","v":0}]
[6,"Backfilling:\nSupply materials, machineries, and manpower to backfill the working area with subbase layers every 30cm thick, approved compaction of each layers using machineries making the standard compaction required to the road level. ","M3",555,null,{"$f":"D21*E21","v":0}]
[null,"Total",null,null,null,{"$f":"SUM(F8:F21)","v":0}]

{"sheet":"Al Arabi area-Presidential","index":6,"n_rows":23,"n_cols":6,"rows_kept":23,"cut":false,"hidden":false,"merged":[[22,1,22,4],[0,0,0,5],[2,1,2,5],[3,1,3,5],[4,1,4,5],[5,1,5,5]]}
["Renovation of the sewerage pipe network - Al-arabi area-Near from presidential palaces-  Mosul - Ninwa Governorate "]
[null,"General Specification : "]
[null," 1- All works according to the instruction by the supervision Engineering Committee"]
[null,"2- All the materials supplied by the contractor must be according to Iraq standards"]
[null,"     3- The contractor must provide samples , catalogues and specification of materials for testing and approval by the site engineer before supplying"]
[null,"4- Contractor must pay the cost for samples including and laboratory test required"]
[null,"5- The drawings are part of the BOQ"]
["#","Item Description","Unit","Qty","price$","Total $"]
[1,"Excavation\nSupply materials, machineries, and manpower to remove the damaged layers (asphalt and concrete), excavate 3m average width the subbase around the pipes to the required depth, removing the existing pipes, the work includes supporting the trench's sides and pumping out the water with all required to complete the job, remove the rubble out of the site to locations determined by the municipality of Mosul.\n","M3",324,null,{"$f":"D9*E9","v":0}]
[2,"Supply pipes:\nSupplying different types and sizes  of pipes as shown below, with all its requirements such as connection fittings of (male & female) threaded adapters , the price includes loading, transporting and unloading in the site."]
[null,"800mm UPVC pipes,with the same thickness as the existing Pipes.","ML",42,null,{"$f":"D11*E11","v":0}]
[null,"600mm UPVC pipes,with the same thickness as the existing Pipes.","ML",12,null,{"$f":"D12*E12","v":0}]
[null," 315mm UPVC pipes ,with the same thickness as the existing Pipes.","ML",24,null,{"$f":"D13*E13","v":0}]
[3,"Laying pipes:\nLaying the pipes according to designed slope, bedding under and around the buried pipe with 20cm thick clean sand, the work includes casting the connection joint between the existing and new pipe because of the different pipes material."]
[null,"800mm UPVC pipes","ML",42,null,{"$f":"D15*E15","v":0}]
[null,"600mm UPVC pipes","ML",12,null,{"$f":"D16*E16","v":0}]
[4,"Laying gullies pipes:\n Supply materials, machineries, and manpower to excavate and lay(315mm dia. UPVC pipes) according to designed slope, bedding under and around the pipes with 20cm thick clean sand, the work includes connecting the pipe with gully & manhole and backfilling the pipe with compacted subbase layer to the road level.","ML",24,null,{"$f":"D17*E17","v":0}]
[5,"Manholes:\nSupply materials and manpower to cast manholes by reinforced concrete mortar 1:2:4 with 30cm thick base, 25cm thick walls, reinforced with 12mm in dia. (15*15)cm, 30cm thick slab cover reinforced with two layers 12mm dia. (15*15)cm, Providing & fixing steel cover approved quality (70cm dia.)with the road level, the work includes   excavation, formwork, repairs work and all required to complete the job as the details below:"]
[null,"internal clearance dimensions (1.6*1.6) m","EA",3,null,{"$f":"D19*E19","v":0}]
[null,"internal clearance dimensions (1.2*1.2) m","EA",2,null,{"$f":"D20*E20","v":0}]
[5,"Gullies:\nSupply materials, manpower to Cast Gullies with concrete 1:2:4, internal clearance dimensions (35*55) cm, 75cm depth, base thickness 20cm, wall thickness 15cm. The work includes providing and fixing cast iron inlet cover.","EA",8,null,{"$f":"D21*E21","v":0}]
[6,"Backfilling:\nSupply materials, machineries, and manpower to backfill the working area with subbase layers every 30cm thick, approved compaction of each layers using machineries making the standard compaction required to the road level. ","M3",252,null,{"$f":"D22*E22","v":0}]
[null,"Total",null,null,null,{"$f":"SUM(F9:F22)","v":0}]

{"sheet":"Al arabi-Dairy factory","index":7,"n_rows":22,"n_cols":6,"rows_kept":22,"cut":false,"hidden":false,"merged":[[21,1,21,4],[0,0,0,5],[2,1,2,5],[3,1,3,5],[4,1,4,5],[5,1,5,5]]}
["Renovation of the sewerage pipe network - Al-arabi area-Near from dairy factory - Mosul - Ninwa Governorate "]
[null,"General Specification : "]
[null," 1- All works according to the instruction by the supervision Engineering Committee"]
[null,"2- All the materials supplied by the contractor must be according to Iraq standards"]
[null,"     3- The contractor must provide samples , catalogues and specification of materials for testing and approval by the site engineer before supplying"]
[null,"4- Contractor must pay the cost for samples including and laboratory test required"]
[null,"5- The drawings are part of the BOQ"]
["#","Item Description","Unit","Qty","price$","Total $"]
[1,"Excavation\nSupply materials, machineries, and manpower to remove the damaged layers (asphalt and concrete), excavate 3m average width the subbase around the pipes to the required depth, removing the existing pipes, the work includes supporting the trench's sides and pumping out the water with all required to complete the job, remove the rubble out of the site to locations determined by the municipality of Mosul.\n","M3",432,null,{"$f":"D9*E9","v":0}]
[2,"Supply pipes:\nSupplying different types and sizes  of pipes as shown below, with all its requirements such as connection fittings of (male & female) threaded adapters , the price includes loading, transporting and unloading in the site."]
[null,"800mm UPVC pipes,with the same thickness as the existing Pipes.","ML",60,null,{"$f":"D11*E11","v":0}]
[null,"600mm UPVC pipes,with the same thickness as the existing Pipes.","ML",12,null,{"$f":"D12*E12","v":0}]
[null," 315mm UPVC pipes,with the same thickness as the existing Pipes.","ML",30,null,{"$f":"D13*E13","v":0}]
[3,"Laying pipes:\nLaying the pipes according to designed slope, bedding under and around the buried pipe with 20cm thick clean sand, the work includes casting the connection joint between the existing and new pipe because of the different pipes material."]
[null,"800mm UPVC pipes","ML",60,null,{"$f":"D15*E15","v":0}]
[null,"600mm UPVC pipes","ML",12,null,{"$f":"D16*E16","v":0}]
[4,"Laying gullies pipes:\n Supply materials, machineries, and manpower to excavate and lay(315mm dia. UPVC pipes) according to designed slope, bedding under and around the pipes with 20cm thick clean sand, the work includes connecting the pipe with gully & manhole and backfilling the pipe with compacted subbase layer to the road level.","ML",30,null,{"$f":"D17*E17","v":0}]
[5,"Manholes:\nSupply materials and manpower to cast manholes by reinforced concrete mortar 1:2:4 with 30cm thick base, 25cm thick walls, reinforced with 12mm in dia. (15*15)cm, 30cm thick slab cover reinforced with two layers 12mm dia. (15*15)cm, Providing & fixing steel cover approved quality (70cm dia.)with the road level, the work includes   excavation, formwork, repairs work and all required to complete the job as the details below:"]
[null,"internal clearance dimensions (1.6*1.6) m","EA",7,null,{"$f":"D19*E19","v":0}]
[5,"Gullies:\nSupply materials, manpower to Cast Gullies with concrete 1:2:4, internal clearance dimensions (35*55) cm, 75cm depth, base thickness 20cm, wall thickness 15cm. The work includes providing and fixing cast iron inlet cover.","EA",9,null,{"$f":"D20*E20","v":0}]
[6,"Backfilling:\nSupply materials, machineries, and manpower to backfill the working area with subbase layers every 30cm thick, approved compaction of each layers using machineries making the standard compaction required to the road level. ","M3",334,null,{"$f":"D21*E21","v":0}]
[null,"Total",null,null,null,{"$f":"SUM(F9:F21)","v":0}]

{"sheet":"Al arabi-Al khashab mosque","index":8,"n_rows":20,"n_cols":6,"rows_kept":20,"cut":false,"hidden":false,"merged":[[19,1,19,4],[0,0,0,5],[2,1,2,5],[3,1,3,5],[4,1,4,5],[5,1,5,5]]}
["Renovation of the sewerage pipe network - Al-arabi area-AL-khashab Mosque st.- Mosul - Ninwa Governorate "]
[null,"General Specification : "]
[null," 1- All works according to the instruction by the supervision Engineering Committee"]
[null,"2- All the materials supplied by the contractor must be according to Iraq standards"]
[null,"     3- The contractor must provide samples , catalogues and specification of materials for testing and approval by the site engineer before supplying"]
[null,"4- Contractor must pay the cost for samples including and laboratory test required"]
[null,"5- The drawings are part of the BOQ"]
["#","Item Description","Unit","Qty","price$","Total $"]
[1,"Excavation\nSupply materials, machineries, and manpower to remove the damaged layers (asphalt and concrete), excavate 3m average width the subbase around the pipes to the required depth, removing the existing pipes, the work includes supporting the trench's sides and pumping out the water with all required to complete the job, remove the rubble out of the site to locations determined by the municipality of Mosul.\n","M3",216,null,{"$f":"D9*E9","v":0}]
[2,"Supply pipes:\nSupplying different types and sizes  of pipes as shown below, with all its requirements such as connection fittings of (male & female) threaded adapters , the price includes loading, transporting and unloading in the site.",null,null,null,{"$f":"D10*E10","v":0}]
[null,"600mm UPVC pipes,with the same thickness as the existing Pipes.","ML",36,null,0]
[null," 315mm UPVC pipes, with the same thickness as the existing Pipes.","ML",18,null,0]
[3,"Laying pipes:\nLaying the pipes according to designed slope, bedding under and around the buried pipe with 20cm thick clean sand, the work includes casting the connection joint between the existing and new pipe because of the different pipes material.",null,null,null,0]
[null,"600mm UPVC pipes","ML",36,null,0]
[4,"Laying gullies pipes:\n Supply materials, machineries, and manpower to excavate and lay(315mm dia. UPVC pipes) according to designed slope, bedding under and around the pipes with 20cm thick clean sand, the work includes connecting the pipe with gully & manhole and backfilling the pipe with compacted subbase layer to the road level.","ML",18,null,0]
[5,"Manholes:\nSupply materials and manpower to cast manholes by reinforced concrete mortar 1:2:4 with 30cm thick base, 25cm thick walls, reinforced with 12mm in dia. (15*15)cm, 30cm thick slab cover reinforced with two layers 12mm dia. (15*15)cm, Providing & fixing steel cover approved quality (70cm dia.)with the road level, the work includes   excavation, formwork, repairs work and all required to complete the job as the details below:",null,null,null,0]
[null,"internal clearance dimensions (1.2*1.2) m","EA",3,null,0]
[5,"Gullies:\nSupply materials, manpower to Cast Gullies with concrete 1:2:4, internal clearance dimensions (35*55) cm, 75cm depth, base thickness 20cm, wall thickness 15cm. The work includes providing and fixing cast iron inlet cover.","EA",4,null,0]
[6,"Backfilling:\nSupply materials, machineries, and manpower to backfill the working area with subbase layers every 30cm thick, approved compaction of each layers using machineries making the standard compaction required to the road level. ","M3",180,null,0]
[null,"Total",null,null,null,{"$f":"SUM(F9:F19)","v":0}]

{"sheet":"Al arabi-two side road Park","index":9,"n_rows":20,"n_cols":6,"rows_kept":20,"cut":false,"hidden":false,"merged":[[19,1,19,4],[0,0,0,5],[2,1,2,5],[3,1,3,5],[4,1,4,5],[5,1,5,5]]}
["Renovation of the sewerage pipe network - Al Arabi Area-two side road near the Park- Mosul- Ninwa Governorate "]
[null,"General Specification : "]
[null," 1- All works according to the instruction by the supervision Engineering Committee"]
[null,"2- All the materials supplied by the contractor must be according to Iraq standards"]
[null,"     3- The contractor must provide samples , catalogues and specification of materials for testing and approval by the site engineer before supplying"]
[null,"4- Contractor must pay the cost for samples including and laboratory test required"]
[null,"5- The drawings are part of the BOQ"]
["#","Item Description","Unit","Qty","price$","Total $"]
[1,"Excavation\nSupply materials, machineries, and manpower to remove the damaged layers (asphalt and concrete), excavate 3m average width the subbase around the pipes to the required depth, removing the existing pipes, the work includes supporting the trench's sides and pumping out the water with all required to complete the job, remove the rubble out of the site to locations determined by the municipality of Mosul.\n","M3",396,null,{"$f":"D9*E9","v":0}]
[2,"Supply pipes:\nSupplying different types and sizes  of pipes as shown below, with all its requirements such as connection fittings of (male & female) threaded adapters , the price includes loading, transporting and unloading in the site."]
[null," 900mm GRP pipes ,with the same thickness as the existing Pipes.","ML",66,null,{"$f":"D11*E11","v":0}]
[null," 315mm UPVC pipes ,with the same thickness as the existing Pipes.","ML",12,null,{"$f":"D12*E12","v":0}]
[3,"Laying pipes:\nLaying the pipes according to designed slope, bedding under and around the buried pipe with 20cm thick clean sand, the work includes casting the connection joint between the existing and new pipe because of the different pipes material."]
[null," 900mm GRP pipes ","ML",66,null,{"$f":"D14*E14","v":0}]
[4,"Laying gullies pipes:\n Supply materials, machineries, and manpower to excavate and lay(315mm dia. UPVC pipes) according to designed slope, bedding under and around the pipes with 20cm thick clean sand, the work includes connecting the pipe with gully & manhole and backfilling the pipe with compacted subbase layer to the road level.","ML",12,null,{"$f":"D15*E15","v":0}]
[5,"Manholes:\nSupply materials and manpower to cast manholes by reinforced concrete mortar 1:2:4 with 30cm thick base, 25cm thick walls, reinforced with 12mm in dia. (15*15)cm, 30cm thick slab cover reinforced with two layers 12mm dia. (15*15)cm, Providing & fixing steel cover approved quality (70cm dia.)with the road level, the work includes   excavation, formwork, repairs work and all required to complete the job as the details below:"]
[null,"internal clearance dimensions (1.6*1.6) m","EA",3,null,{"$f":"D17*E17","v":0}]
[5,"Gullies:\nSupply materials, manpower to Cast Gullies with concrete 1:2:4, internal clearance dimensions (35*55) cm, 75cm depth, base thickness 20cm, wall thickness 15cm. The work includes providing and fixing cast iron inlet cover.","EA",3,null,{"$f":"D18*E18","v":0}]
[6,"Backfilling:\nSupply materials, machineries, and manpower to backfill the working area with subbase layers every 30cm thick, approved compaction of each layers using machineries making the standard compaction required to the road level. ","M3",285,null,{"$f":"D19*E19","v":0}]
[null,"Total",null,null,null,{"$f":"SUM(F9:F19)","v":0}]

{"sheet":"Al sdeeq area-20m st","index":10,"n_rows":23,"n_cols":6,"rows_kept":23,"cut":false,"hidden":false,"merged":[[22,1,22,4],[0,0,0,5],[2,1,2,5],[3,1,3,5],[4,1,4,5],[5,1,5,5]]}
["Renovation of the sewerage pipe network - Al-Sdeeq area-20m st.- Mosul - Ninwa Governorate "]
[null,"General Specification : "]
[null," 1- All works according to the instruction by the supervision Engineering Committee"]
[null,"2- All the materials supplied by the contractor must be according to Iraq standards"]
[null,"     3- The contractor must provide samples , catalogues and specification of materials for testing and approval by the site engineer before supplying"]
[null,"4- Contractor must pay the cost for samples including and laboratory test required"]
[null,"5- The drawings are part of the BOQ"]
["#","Item Description","Unit","Qty","price$","Total $"]
[1,"Excavation\nSupply materials, machineries, and manpower to remove the damaged layers (asphalt and concrete), excavate 3m average width the subbase around the pipes to the required depth, removing the existing pipes, the work includes supporting the trench's sides and pumping out the water with all required to complete the job, remove the rubble out of the site to locations determined by the municipality of Mosul.\n","M3",216,null,{"$f":"D9*E9","v":0}]
[2,"Supply pipes:\nSupplying different types and sizes  of pipes as shown below, with all its requirements such as connection fittings of (male & female) threaded adapters , the price includes loading, transporting and unloading in the site."]
[null,"800mm UPVC pipes","ML",24,null,{"$f":"D11*E11","v":0}]
[null,"600mm UPVC pipes","ML",12,null,{"$f":"D12*E12","v":0}]
[null," 315mm UPVC pipes ","ML",48,null,{"$f":"D13*E13","v":0}]
[3,"Laying pipes:\nLaying the pipes according to designed slope, bedding under and around the buried pipe with 20cm thick clean sand, the work includes casting the connection joint between the existing and new pipe because of the different pipes material."]
[null,"800mm UPVC pipes,with the same thickness as the existing Pipes.","ML",24,null,{"$f":"D15*E15","v":0}]
[null,"600mm UPVC pipes,with the same thickness as the existing Pipes.","ML",12,null,{"$f":"D16*E16","v":0}]
[4,"Laying gullies pipes:\n Supply materials, machineries, and manpower to excavate and lay(315mm dia. UPVC pipes) according to designed slope, bedding under and around the pipes with 20cm thick clean sand, the work includes connecting the pipe with gully & manhole and backfilling the pipe with compacted subbase layer to the road level.","ML",48,null,{"$f":"D17*E17","v":0}]
[5,"Manholes:\nSupply materials and manpower to cast manholes by reinforced concrete mortar 1:2:4 with 30cm thick base, 25cm thick walls, reinforced with 12mm in dia. (15*15)cm, 30cm thick slab cover reinforced with two layers 12mm dia. (15*15)cm, Providing & fixing steel coverapproved quality (70cm dia.)with the road level, the work includes   excavation, formwork, repairs work and all required to complete the job as the details below:"]
[null,"internal clearance dimensions (1.6*1.6) m","EA",2,null,{"$f":"D19*E19","v":0}]
[null,"internal clearance dimensions (1.2*1.2) m","EA",2,null,{"$f":"D20*E20","v":0}]
[5,"Gullies:\nSupply materials, manpower to Cast Gullies with concrete 1:2:4, internal clearance dimensions (35*55) cm, 75cm depth, base thickness 20cm, wall thickness 15cm. The work includes providing and fixing cast iron inlet cover.","EA",8,null,{"$f":"D21*E21","v":0}]
[6,"Backfilling:\nSupply materials, machineries, and manpower to backfill the working area with subbase layers every 30cm thick, approved compaction of each layers using machineries making the standard compaction required to the road level. ","M3",290,null,{"$f":"D22*E22","v":0}]
[null,"Total",null,null,null,{"$f":"SUM(F9:F22)","v":0}]

{"sheet":"Al baradiat-Ra'oof Mosque","index":11,"n_rows":20,"n_cols":6,"rows_kept":20,"cut":false,"hidden":false,"merged":[[19,1,19,4],[15,2,16,2],[15,3,16,3],[15,4,16,4],[15,5,16,5],[12,2,13,2],[12,3,13,3],[12,4,13,4],[12,5,13,5],[0,0,0,5],[2,1,2,5],[3,1,3,5],[4,1,4,5],[5,1,5,5]]}
["Renovation of the Sewerage Pipe Network - Al-Baladiat area-near Al-Ra'oof Mosque - Mosul - Ninwa Governorate "]
[null,"General Specification : "]
[null," 1- All works according to the instruction by the supervision Engineering Committee"]
[null,"2- All the materials supplied by the contractor must be according to Iraq standards"]
[null,"     3- The contractor must provide samples , catalogues and specification of materials for testing and approval by the site engineer before supplying"]
[null,"4- Contractor must pay the cost for samples including and laboratory test required"]
[null,"5- The drawings are part of rhe BOQ"]
["#","Item Description","Unit","Qty","Price$","Total $"]
[1,"Excavation\nSupply materials, machineries, and manpower to remove the damaged layers (asphalt and concrete), excavate 3m average width the subbase around the pipes to the required depth, removing the existing pipes, the work includes supporting the trench's sides and pumping out the water with all required to complete the job, remove the rubble out of the site to locations determined by the municipality of Mosul.\n","ML",12,null,{"$f":"D9*E9","v":0}]
[2,"Supply pipes:\nSupplying different types and sizes  of pipes as shown below, with all its requirements such as connection fittings of (male & female) threaded adapters , the price includes loading, transporting and unloading in the site."]
[2.1,"600mm UPVC pipes, with the same thickness as the existing Pipes.","ML",12,null,{"$f":"D11*E11","v":0}]
[2.2000000000000002," 315mm UPVC pipes , with the same thickness as the existing Pipes.","ML",6,null,{"$f":"D12*E12","v":0}]
[3,"Laying pipes:\nLaying the pipes according to designed slope, bedding under and around the buried pipe with 20cm thick clean sand, the work includes casting the connection joint between the existing and new pipe because of the different pipes material.","ML",12,null,{"$f":"D13*E13","v":0}]
[null,"For 600mm UPVC pipes"]
[4,"Laying gullies pipes:\n Supply materials, machineries, and manpower to excavate and lay(315mm dia. UPVC pipes) according to designed slope, bedding under and around the pipes with 20cm thick clean sand, the work includes connecting the pipe with gully & manhole and backfilling the pipe with compacted subbase layer to the road level.","ML",6,null,{"$f":"D15*E15","v":0}]
[5,"Manholes:\nSupply materials and manpower to cast manholes by reinforced concrete mortar 1:2:4, C20MPa, with 30cm thick base, 25cm thick walls, reinforced with 12mm dia. (15*15)cm spaced at 15*15 cm in both direction, 30cm thick slab cover reinforced with two layers 12mm dia. (15*15)cm, Providing & fixing steel cover of approved quality (70cm dia.)with the road level, the work includes excavation, formwork, repairs work and all required to complete the job as the details below:","EA",2,null,{"$f":"D16*E16","v":0}]
[null,"Internal clearance dimensions (1.2*1.2) m"]
[6,"Gullies:\nSupply materials, manpower to Cast Gullies with concrete 1:2:4, C20MPa, internal clearance dimensions (35*55) cm, 75cm depth, base thickness 20cm, wall thickness 15cm. The work includes providing and fixing cast iron inlet cover.","EA",2,null,{"$f":"D18*E18","v":0}]
[7,"Backfilling:\nSupply materials, machineries, and manpower to backfill the working area with subbase layers every 30cm thick, 95% degree of compaction for each layers using machineries making the standard compaction required to the road level. ","M3",96,null,{"$f":"D19*E19","v":0}]
[null,"Total",null,null,null,{"$f":"SUM(F9:F19)","v":0}]

{"sheet":"Al Hadbaa-Ba'weeza Appart","index":12,"n_rows":20,"n_cols":6,"rows_kept":20,"cut":false,"hidden":false,"merged":[[19,1,19,4],[0,0,0,5],[2,1,2,5],[3,1,3,5],[4,1,4,5],[5,1,5,5]]}
["Renovation of the sewerage pipe network - Al-Hadbaa area-Ba'weeza in front of the apartments- Mosul- Ninwa Governorate "]
[null,"General Specification : "]
[null," 1- All works according to the instruction by the supervision Engineering Committee"]
[null,"2- All the materials supplied by the contractor must be according to Iraq standards"]
[null,"     3- The contractor must provide samples , catalogues and specification of materials for testing and approval by the site engineer before supplying"]
[null,"4- Contractor must pay the cost for samples including and laboratory test required"]
[null,"5- The drawings are part of the BOQ"]
["#","Item Description","Unit","Qty","price$","Total $"]
[1,"Excavation\nSupply materials, machineries, and manpower to remove the damaged layers (asphalt and concrete), excavate 3m average width the subbase around the pipes to the required depth, removing the existing pipes, the work includes supporting the trench's sides and pumping out the water with all required to complete the job, remove the rubble out of the site to locations determined by the municipality of Mosul.\n","M3",432,null,{"$f":"D9*E9","v":0}]
[2,"Supply pipes:\nSupplying different types and sizes  of pipes as shown below, with all its requirements such as connection fittings of (male & female) threaded adapters , the price includes loading, transporting and unloading in the site."]
[null,"500mm UPVC pipes,with the same thickness as the existing Pipes.","ML",72,null,{"$f":"D11*E11","v":0}]
[null," 315mm UPVC pipes,with the same thickness as the existing Pipes.","ML",24,null,{"$f":"D12*E12","v":0}]
[3,"Laying pipes:\nLaying the pipes according to designed slope, bedding under and around the buried pipe with 20cm thick clean sand, the work includes casting the connection joint between the existing and new pipe because of the different pipes material."]
[null,"500mm UPVC pipes","ML",72,null,{"$f":"D14*E14","v":0}]
[4,"Laying gullies pipes:\n Supply materials, machineries, and manpower to excavate and lay(315mm dia. UPVC pipes) according to designed slope, bedding under and around the pipes with 20cm thick clean sand, the work includes connecting the pipe with gully & manhole and backfilling the pipe with compacted subbase layer to the road level.","ML",24,null,{"$f":"D15*E15","v":0}]
[5,"Manholes:\nSupply materials and manpower to cast manholes by reinforced concrete mortar 1:2:4 with 30cm thick base, 25cm thick walls, reinforced with 12mm in dia. (15*15)cm, 30cm thick slab cover reinforced with two layers 12mm dia. (15*15)cm, Providing & fixing steel cover approved quality (70cm dia.)with the road level, the work includes   excavation, formwork, repairs work and all required to complete the job as the details below:"]
[null,"internal clearance dimensions (1.2*1.2) m","EA",5,null,{"$f":"D17*E17","v":0}]
[5,"Gullies:\nSupply materials, manpower to Cast Gullies with concrete 1:2:4, internal clearance dimensions (35*55) cm, 75cm depth, base thickness 20cm, wall thickness 15cm. The work includes providing and fixing cast iron inlet cover.","EA",8,null,{"$f":"D18*E18","v":0}]
[6,"Backfilling:\nSupply materials, machineries, and manpower to backfill the working area with subbase layers every 30cm thick, approved compaction of each layers using machineries making the standard compaction required to the road level. ","M3",374,null,{"$f":"D19*E19","v":0}]
[null,"Total",null,null,null,{"$f":"SUM(F9:F19)","v":0}]

{"sheet":"Al Arabi-Two side road nea Park","index":13,"n_rows":20,"n_cols":6,"rows_kept":20,"cut":false,"hidden":false,"merged":[[19,1,19,4],[0,0,0,5],[2,1,2,5],[3,1,3,5],[4,1,4,5],[5,1,5,5]]}
["Renovation of the Sewerage Pipe Network - Al Arabi Area-two side road near the Park- Mosul- Ninwa Governorate "]
[null,"General Specification : "]
[null," 1- All works according to the instruction by the supervision Engineering Committee"]
[null,"2- All the materials supplied by the contractor must be according to Iraq standards"]
[null,"     3- The contractor must provide samples , catalogues and specification of materials for testing and approval by the site engineer before supplying"]
[null,"4- Contractor must pay the cost for samples including and laboratory test required"]
[null,"5- The drawings are part of the BOQ"]
["#","Item Description","Unit","Qty","Price$","Total $"]
[1,"Excavation\nSupply materials, machineries, and manpower to remove the damaged layers (asphalt and concrete), excavate 3m average width the subbase around the pipes to the required depth, removing the existing pipes, the work includes supporting the trench's sides and pumping out the water with all required to complete the job, remove the rubble out of the site to locations determined by the municipality of Mosul.\n","ML",72,null,{"$f":"D9*E9","v":0}]
[2,"Supply pipes:\nSupplying different types and sizes  of pipes as shown below, with all its requirements such as connection fittings of (male & female) threaded adapters , the price includes loading, transporting and unloading in the site."]
[null," 900mm GRP pipes, with the same thickness as the exsiting Pipes. ","ML",72,null,{"$f":"D11*E11","v":0}]
[null," 315mm UPVC pipes , with the same thickness as the exsiting Pipes.","ML",12,null,{"$f":"D12*E12","v":0}]
[3,"Laying pipes:\nLaying the pipes according to designed slope, bedding under and around the buried pipe with 20cm thick clean sand, the work includes casting the connection joint between the existing and new pipe because of the different pipes material."]
[null," For 900mm GRP pipes ","ML",72,null,{"$f":"D14*E14","v":0}]
[4,"Laying gullies pipes:\n Supply materials, machineries, and manpower to excavate and lay(315mm dia. UPVC pipes) according to designed slope, bedding under and around the pipes with 20cm thick clean sand, the work includes connecting the pipe with gully & manhole and backfilling the pipe with compacted subbase layer to the road level.","ML",12,null,{"$f":"D15*E15","v":0}]
[5,"Manholes:\nSupply materials and manpower to cast manholes by reinforced concrete mortar 1:2:4, C20MPa, with 30cm thick base, 25cm thick walls, reinforced with 12mm dia. (15*15)cm spaced in 15*15cm in both direction, 30cm thick slab cover reinforced with two layers 12mm dia. (15*15)cm, Providing & fixing steel cover of approved quality (70cm dia.)with the road level, the work includes excavation, formwork, repairs work and all required to complete the job as the details below:"]
[null,"Internal clearance dimensions (1.6*1.6) m","EA",3,null,{"$f":"D17*E17","v":0}]
[5,"Gullies:\nSupply materials, manpower to Cast Gullies with concrete 1:2:4, C20MPa, internal clearance dimensions (35*55) cm, 75cm depth, base thickness 20cm, wall thickness 15cm. The work includes providing and fixing cast iron inlet cover.","EA",3,null,{"$f":"D18*E18","v":0}]
[6,"Backfilling:\nSupply materials, machineries, and manpower to backfill the working area with subbase layers every 30cm thick, 95% degree of compaction for each layers using machineries making the standard compaction required to the road level. ","M3",527,null,{"$f":"D19*E19","v":0}]
[null,"Total",null,null,null,{"$f":"SUM(F9:F19)","v":0}]